fUSD/lending_fUSD_20240222
["ID","MTS","AMOUNT","RATE_DAILY","PERIOD"]
[314877001,1708609846352,-500.0,0.00032876,2]
[314877002,1708609846361,-500.0,0.00032876,2]
[314877003,1708609846371,-728.26,0.00032876,2]
[314877004,1708609846383,-740.56,0.00032876,2]
[314877005,1708609846394,-576.99,0.00032876,2]
[314877006,1708609846403,-1235.76,0.00032876,2]
[314877007,1708609846413,-510.97242894,0.00032876,2]
[314877008,1708609846422,-500.0,0.00032876,2]
[314877009,1708609846432,-958.67,0.00032876,2]
[314877010,1708609846441,-527.95097829,0.00032876,2]
[314877011,1708609846451,-500.0,0.00032876,2]
[314877012,1708609846462,-798.51,0.00032876,2]
[314877013,1708609846472,-500.0,0.00032876,2]
[314877014,1708609846482,-562.86711434,0.00032876,2]
[314877015,1708609846494,-500.0,0.00032876,2]
[314877016,1708609846505,-500.0,0.00032876,2]
[314877017,1708609846517,-500.0,0.00032876,2]
[314877018,1708609846528,-500.0,0.00032876,2]
[314877019,1708609846539,-500.0,0.00032876,2]
[314877020,1708609846550,-500.0,0.00032876,2]
[314877021,1708609846560,-500.0,0.00032876,2]
[314877022,1708609846571,-709.48,0.00032876,2]
[314877023,1708609846581,-500.0,0.00032876,2]
[314877024,1708609846592,-500.0,0.00032876,2]
[314877025,1708609846602,-500.0,0.00032876,2]
[314877026,1708609846612,-677.75,0.00032876,2]
[314877027,1708609846622,-782.93,0.00032876,2]
[314877028,1708609846635,-500.0,0.00032876,2]
[314877029,1708609846647,-607.79,0.00032876,2]
[314877030,1708609846660,-500.0,0.00032876,2]
[314877031,1708609846672,-500.0,0.00032876,2]
[314877032,1708609846683,-500.0,0.00032876,2]
[314877033,1708609846694,-3088.82,0.00032876,2]
[314877034,1708609846705,-500.0,0.00032876,2]
[314877035,1708609846716,-500.0,0.00032876,2]
[314877036,1708609846727,-601.69384031,0.00032876,2]
[314877037,1708609846739,-500.0,0.00032876,2]
[314877038,1708609846751,-500.0,0.00032876,2]
[314877039,1708609846762,-500.0,0.00032876,2]
[314877040,1708609846773,-500.0,0.00032876,2]
[314877041,1708609846785,-500.0,0.00032876,2]
[314877042,1708609846795,-526.60684737,0.00032876,2]
[314877043,1708609846808,-692.14,0.00032876,2]
[314877044,1708609846821,-500.0,0.00032876,2]
[314877045,1708609846832,-1044.7,0.00032876,2]
[314877046,1708609846843,-500.0,0.00032876,2]
[314877047,1708609846854,-1535.27,0.00032876,2]
[314877048,1708609846865,-1251.02,0.00032876,2]
[314877049,1708609846876,-512.76,0.00032876,2]
[314877050,1708609846890,-500.0,0.00032876,2]
[314877051,1708609846900,-998.1,0.00032876,2]
[314877052,1708609846911,-500.0,0.00032876,2]
[314877053,1708609846922,-1149.17,0.00032876,2]
[314877054,1708609846933,-617.07,0.00032876,2]
[314877055,1708609846943,-500.0,0.00032876,2]
[314877056,1708609846954,-500.0,0.00032876,2]
[314877057,1708609846964,-774.24,0.00032876,2]
[314877058,1708609846974,-1100.37,0.00032876,2]
[314877059,1708609846984,-500.0,0.00032876,2]
[314877060,1708609846994,-500.0,0.00032876,2]
[314877061,1708609847004,-526.39,0.00032876,2]
[314877062,1708609847015,-500.0,0.00032876,2]
[314877063,1708609847025,-397.57129907,0.00032876,2]
[314877064,1708609847035,-500.0,0.00032876,2]
[314877065,1708609847044,-547.47,0.00032876,2]
[314877066,1708609847055,-500.0,0.00032876,2]
[314877067,1708609847065,-500.0,0.00032876,2]
[314877068,1708609847075,-500.0,0.00032876,2]
[314877069,1708609847086,-500.0,0.00032876,2]
[314877070,1708609847096,-541.40675257,0.00032876,2]
[314877071,1708609847106,-500.0,0.00032876,2]
[314877072,1708609847115,-1838.82,0.00032876,2]
[314877073,1708609847126,-1104.51,0.00032876,2]
[314877074,1708609847139,-500.0,0.00032876,2]
[314877075,1708609847148,-500.0,0.00032876,2]
[314877076,1708609847157,-500.0,0.00032876,2]
[314877077,1708609847167,-997.33,0.00032876,2]
[314877078,1708609847176,-579.60852088,0.00032876,2]
[314877079,1708609847185,-500.0,0.00032876,2]
[314877080,1708609847194,-869.16,0.00032876,2]
[314877081,1708609847206,-500.0,0.00032876,2]
[314877082,1708609847217,-781.22,0.00032876,2]
[314877083,1708609847228,-500.0,0.00032876,2]
[314877084,1708609847238,-801.16,0.00032876,2]
[314877085,1708609847248,-500.0,0.00032876,2]
[314877086,1708609847258,-500.0,0.00032876,2]
[314877087,1708609847267,-780.0,0.00032876,2]
[314877088,1708609847278,-500.0,0.00032876,2]
[314877089,1708609847288,-500.0,0.00032876,2]
[314877090,1708609847297,-2720.42,0.00032876,2]
[314877091,1708609847306,-506.58,0.00032876,2]
[314877092,1708609847317,-512.25782909,0.00032876,2]
[314877093,1708609847326,-808.28,0.00032876,2]
[314877094,1708609847337,-500.0,0.00032876,2]
[314877095,1708609847347,-566.33,0.00032876,2]
[314877096,1708609847356,-500.0,0.00032876,2]
[314877097,1708609847365,-581.02,0.00032876,2]
[314877098,1708609847374,-1259.73,0.00032876,2]
[314877099,1708609847384,-944.44,0.00032876,2]
[314877100,1708609847394,-555.18518347,0.00032876,2]
[314877101,1708609847404,-500.0,0.00032876,2]
[314877102,1708609847415,-500.0,0.00032876,2]
[314877103,1708609847424,-500.0,0.00032876,2]
[314877104,1708609847435,-500.0,0.00032876,2]
[314877105,1708609847446,-500.0,0.00032876,2]
[314877106,1708609847456,-500.0,0.00032876,2]
[314877107,1708609847465,-500.0,0.00032876,2]
[314877108,1708609847476,-500.0,0.00032876,2]
[314877109,1708609847486,-982.37,0.00032876,2]
[314877110,1708609847496,-500.0,0.00032876,2]
[314877111,1708609847507,-500.0,0.00032876,2]
[314877112,1708609847517,-500.0,0.00032876,2]
[314877113,1708609847527,-950.4,0.00032876,2]
[314877114,1708609847536,-1421.75,0.00032876,2]
[314877115,1708609847546,-1040.69,0.00032876,2]
[314877116,1708609847555,-500.0,0.00032876,2]
[314877117,1708609847565,-500.0,0.00032876,2]
[314877118,1708609847575,-2462.03,0.00032876,2]
[314877119,1708609847584,-500.0,0.00032876,2]
[314877120,1708609847594,-500.0,0.00032876,2]
[314877121,1708609847603,-500.0,0.00032876,2]
[314877122,1708609847613,-528.08,0.00032876,2]
[314877123,1708609847623,-3116.3,0.00032876,2]
[314877124,1708609847634,-1502.5,0.00032876,2]
[314877125,1708609847643,-500.0,0.00032876,2]
[314877126,1708609847653,-500.0,0.00032876,2]
[314877127,1708609847664,-505.73,0.00032876,2]
[314877128,1708609847675,-1446.08,0.00032876,2]
[314877129,1708609847685,-1404.04,0.00032876,2]
[314877130,1708609847695,-1229.8,0.00032876,2]
[314877131,1708609847706,-7208.8,0.00032876,2]
[314877132,1708609847716,-843.92,0.00032876,2]
[314877133,1708609847725,-4962.42,0.00032876,2]
[314877134,1708609847735,-500.0,0.00032876,2]
[314877135,1708609847745,-528.75,0.00032876,2]
[314877136,1708609847754,-500.0,0.00032876,2]
[314877137,1708609847763,-500.0,0.00032876,2]
[314877138,1708609847774,-500.0,0.00032876,2]
[314877139,1708609847850,-500.0,0.00032876,2]
[314877140,1708609847860,-500.0,0.00032876,2]
[314877141,1708609847870,-500.0,0.00032876,2]
[314877142,1708609847879,-702.99,0.00032876,2]
[314877143,1708609847892,-629.9,0.00032876,2]
[314877144,1708609847901,-500.0,0.00032876,2]
[314877145,1708609847911,-731.77,0.00032876,2]
[314877146,1708609847921,-506.03293361,0.00032876,2]
[314877147,1708609847930,-977.25,0.00032876,2]
[314877148,1708609847940,-649.22,0.00032876,2]
[314877149,1708609847949,-500.0,0.00032876,2]
[314877150,1708609847959,-500.0,0.00032876,2]
[314877151,1708609847968,-3093.42,0.00032876,2]
[314877152,1708609847977,-643.71,0.00032876,2]
[314877153,1708609847987,-500.0,0.00032876,2]
[314877154,1708609847996,-886.86,0.00032876,2]
[314877155,1708609848005,-500.0,0.00032876,2]
[314877156,1708609848015,-889.43,0.00032876,2]
[314877157,1708609848025,-502.79,0.00032876,2]
[314877158,1708609848034,-500.0,0.00032876,2]
[314877159,1708609848044,-349.62818135,0.00032876,2]
[314877160,1708609848054,-500.0,0.00032876,2]
[314877161,1708609848063,-701.23,0.00032876,2]
[314877162,1708609848073,-8263.2,0.00032876,2]
[314877163,1708609848082,-2446.43,0.00032876,2]
[314877164,1708609848091,-1021.2,0.00032876,2]
[314877165,1708609848102,-500.0,0.00032876,2]
[314877166,1708609848111,-5214.06,0.00032876,2]
[314877167,1708609848120,-500.0,0.00032876,2]
[314877168,1708609848134,-647.5,0.00032876,2]
[314877169,1708609848146,-500.0,0.00032876,2]
[314877170,1708609848157,-569.98,0.00032876,2]
[314877171,1708609848167,-500.0,0.00032876,2]
[314877172,1708609848176,-547.83,0.00032876,2]
[314877173,1708609848186,-500.0,0.00032876,2]
[314877174,1708609848195,-533.97954966,0.00032876,2]
[314877175,1708609848205,-556.58087984,0.00032876,2]
[314877176,1708609848215,-500.0,0.00032876,2]
[314877177,1708609848224,-500.0,0.00032876,2]
[314877178,1708609848233,-235.47763201,0.00032876,2]
[314877179,1708609848242,-575.35,0.00032876,2]
[314877180,1708609848252,-941.27,0.00032876,2]
[314877181,1708609848261,-3715.35,0.00032876,2]
[314877182,1708609848271,-500.68298,0.00032876,2]
[314877183,1708609848281,-321.99267654,0.00032876,2]
[314877184,1708609848290,-500.0,0.00032876,2]
[314877185,1708609848299,-500.0,0.00032876,2]
[314877186,1708609848308,-838.99,0.00032876,2]
[314877187,1708609848318,-500.0,0.00032876,2]
[314877188,1708609848327,-500.0,0.00032876,2]
[314877189,1708609848336,-500.0,0.00032876,2]
[314877190,1708609848346,-5740.85,0.00032876,2]
[314877191,1708609848355,-500.0,0.00032876,2]
[314877192,1708609848364,-500.0,0.00032876,2]
[314877193,1708609848374,-500.0,0.00032876,2]
[314877194,1708609848386,-601.28,0.00032876,2]
[314877195,1708609848395,-500.0,0.00032876,2]
[314877196,1708609848404,-500.0,0.00032876,2]
[314877197,1708609848414,-500.0,0.00032876,2]
[314877198,1708609848422,-2154.17,0.00032876,2]
[314877199,1708609848432,-500.0,0.00032876,2]
[314877200,1708609848441,-893.79,0.00032876,2]
[314877201,1708609848451,-844.21,0.00032876,2]
[314877202,1708609848460,-500.0,0.00032876,2]
[314877203,1708609848469,-1131.48,0.00032876,2]
[314877204,1708609848478,-500.0,0.00032876,2]
[314877205,1708609848487,-14478.67,0.00032876,2]
[314877206,1708609848496,-500.0,0.00032876,2]
[314877207,1708609848506,-500.0,0.00032876,2]
[314877208,1708609848515,-500.0,0.00032876,2]
[314877209,1708609848525,-1997.78,0.00032876,2]
[314877210,1708609848534,-500.0,0.00032876,2]
[314877211,1708609848543,-500.0,0.00032876,2]
[314877212,1708609848552,-500.0,0.00032876,2]
[314877213,1708609848562,-500.0,0.00032876,2]
[314877214,1708609848571,-500.0,0.00032876,2]
[314877215,1708609848580,-500.0,0.00032876,2]
[314877216,1708609848589,-1271.39,0.00032876,2]
[314877217,1708609848599,-500.0,0.00032876,2]
[314877218,1708609848607,-500.0,0.00032876,2]
[314877219,1708609848617,-500.0,0.00032876,2]
[314877220,1708609848626,-500.0,0.00032876,2]
[314877221,1708609848637,-500.0,0.00032876,2]
[314877222,1708609848646,-500.0,0.00032876,2]
[314877223,1708609848656,-500.0,0.00032876,2]
[314877224,1708609848665,-2467.69,0.00032876,2]
[314877225,1708609848675,-500.0,0.00032876,2]
[314877226,1708609848685,-500.0,0.00032876,2]
[314877227,1708609848695,-500.0,0.00032876,2]
[314877228,1708609848704,-704.75,0.00032876,2]
[314877229,1708609848713,-532.76715284,0.00032876,2]
[314877230,1708609848723,-532.13,0.00032876,2]
[314877231,1708609848733,-558.03,0.00032876,2]
[314877232,1708609848743,-2068.83,0.00032876,2]
[314877233,1708609848752,-500.0,0.00032876,2]
[314877234,1708609848762,-500.0,0.00032876,2]
[314877235,1708609848771,-12300.35,0.00032876,2]
[314877236,1708609848781,-1288.97,0.00032876,2]
[314877237,1708609848791,-500.0,0.00032876,2]
[314877238,1708609848800,-2578.42,0.00032876,2]
[314877239,1708609848809,-500.0,0.00032876,2]
[314877240,1708609848819,-1444.74,0.00032876,2]
[314877241,1708609848829,-500.0,0.00032876,2]
[314877242,1708609848838,-659.64,0.00032876,2]
[314877243,1708609848848,-500.0,0.00032876,2]
[314877244,1708609848857,-500.0,0.00032876,2]
[314877245,1708609848867,-658.49,0.00032876,2]
[314877246,1708609848876,-500.0,0.00032876,2]
[314877247,1708609848890,-13777.24,0.00032876,2]
[314877248,1708609848899,-500.0,0.00032876,2]
[314877249,1708609848909,-500.0,0.00032876,2]
[314877250,1708609848919,-500.0,0.00032876,2]
[314877251,1708609848928,-500.0,0.00032876,2]
[314877252,1708609848937,-500.0,0.00032876,2]
[314877253,1708609848947,-640.35654892,0.00032876,2]
[314877254,1708609848956,-2928.23,0.00032876,2]
[314877255,1708609848966,-500.0,0.00032876,2]
[314877256,1708609848975,-500.0,0.00032876,2]
[314877257,1708609848985,-1149.99,0.00032876,2]
[314877258,1708609848994,-3224.65,0.00032876,2]
[314877259,1708609849003,-990.95,0.00032876,2]
[314877260,1708609849013,-914.8,0.00032876,2]
[314877261,1708609849022,-500.0,0.00032876,2]
[314877262,1708609849032,-8896.4,0.00032876,2]
[314877263,1708609849041,-500.0,0.00032876,2]
[314877264,1708609849051,-500.0,0.00032876,2]
[314877265,1708609849061,-500.0,0.00032876,2]
[314877266,1708609849070,-500.0,0.00032876,2]
[314877267,1708609849079,-4299.33,0.00032876,2]
[314877268,1708609849089,-500.0,0.00032876,2]
[314877269,1708609849099,-513.8991,0.00032876,2]
[314877270,1708609849108,-500.0,0.00032876,2]
[314877271,1708609849118,-829.97,0.00032876,2]
[314877272,1708609849130,-500.0,0.00032876,2]
[314877273,1708609849142,-500.0,0.00032876,2]
[314877274,1708609849151,-520.5218413,0.00032876,2]
[314877275,1708609849161,-1770.84,0.00032876,2]
[314877276,1708609849170,-2126.98,0.00032876,2]
[314877277,1708609849180,-500.0,0.00032876,2]
[314877278,1708609849189,-500.0,0.00032876,2]
[314877279,1708609849198,-215.24,0.00032876,2]
[314877280,1708609849207,-500.0,0.00032876,2]
[314877281,1708609849217,-735.34,0.00032876,2]
[314877282,1708609849226,-500.0,0.00032876,2]
[314877283,1708609849235,-500.0,0.00032876,2]
[314877284,1708609849245,-578.04,0.00032876,2]
[314877285,1708609849254,-2452.59,0.00032876,2]
[314877286,1708609849263,-500.0,0.00032876,2]
[314877287,1708609849272,-500.0,0.00032876,2]
[314877288,1708609849281,-500.0,0.00032876,2]
[314877289,1708609849292,-500.0,0.00032876,2]
[314877290,1708609849301,-4697.42,0.00032876,2]
[314877291,1708609849310,-923.4,0.00032876,2]
[314877292,1708609849319,-650.6,0.00032876,2]
[314877293,1708609849328,-3314.65,0.00032876,2]
[314877294,1708609849337,-500.0,0.00032876,2]
[314877295,1708609849346,-4338.91,0.00032876,2]
[314877296,1708609849355,-759.32,0.00032876,2]
[314877297,1708609849364,-500.0,0.00032876,2]
[314877298,1708609849373,-573.73654336,0.00032876,2]
[314877299,1708609849383,-500.0,0.00032876,2]
[314877300,1708609849392,-4053.5,0.00032876,2]
[314877301,1708609849402,-500.0,0.00032876,2]
[314877302,1708609849413,-453.64817129,0.00032876,2]
[314877303,1708609849422,-567.71,0.00032876,2]
[314877304,1708609849431,-813.31,0.00032876,2]
[314877305,1708609849442,-500.0,0.00032876,2]
[314877306,1708609849451,-3686.5,0.00032876,2]
[314877307,1708609849460,-500.0,0.00032876,2]
[314877308,1708609849470,-500.0,0.00032876,2]
[314877309,1708609849479,-500.0,0.00032876,2]
[314877310,1708609849488,-500.0,0.00032876,2]
[314877311,1708609849497,-500.0,0.00032876,2]
[314877312,1708609849506,-505.78298647,0.00032876,2]
[314877313,1708609849514,-500.0,0.00032876,2]
[314877314,1708609849523,-500.0,0.00032876,2]
[314877315,1708609849532,-37015.41,0.00032876,2]
[314877316,1708609849541,-500.0,0.00032876,2]
[314877317,1708609849550,-641.36,0.00032876,2]
[314877318,1708609849559,-500.0,0.00032876,2]
[314877319,1708609849568,-500.0,0.00032876,2]
[314877320,1708609849577,-500.0,0.00032876,2]
[314877321,1708609849586,-160.46100153,0.00032876,2]
[314877322,1708609849595,-500.0,0.00032876,2]
[314877323,1708609849604,-16580.01,0.00032876,2]
[314877324,1708609849613,-500.0,0.00032876,2]
[314877325,1708609849622,-500.0,0.00032876,2]
[314877326,1708609849631,-870.83,0.00032876,2]
[314877327,1708609849641,-500.0,0.00032876,2]
[314877328,1708609849651,-500.0,0.00032876,2]
[314877329,1708609849661,-500.0,0.00032876,2]
[314877330,1708609849671,-500.0,0.00032876,2]
[314877331,1708609849680,-2063.07,0.00032876,2]
[314877332,1708609849689,-500.0,0.00032876,2]
[314877333,1708609849698,-641.06802224,0.00032876,2]
[314877334,1708609849707,-500.0,0.00032876,2]
[314877335,1708609849717,-500.0,0.00032876,2]
[314877336,1708609849726,-500.0,0.00032876,2]
[314877337,1708609849735,-500.0,0.00032876,2]
[314877338,1708609849745,-500.0,0.00032876,2]
[314877339,1708609849755,-2528.4,0.00032876,2]
[314877340,1708609849763,-500.0,0.00032876,2]
[314877341,1708609849773,-500.0,0.00032876,2]
[314877342,1708609849782,-3797.29,0.00032876,2]
[314877343,1708609849791,-404.31026061,0.00032876,2]
[314877344,1708609849800,-500.0,0.00032876,2]
[314877345,1708609849809,-500.0,0.00032876,2]
[314877346,1708609849818,-500.0,0.00032876,2]
[314877347,1708609849827,-500.0,0.00032876,2]
[314877348,1708609849836,-541.04,0.00032876,2]
[314877349,1708609849845,-1328.89,0.00032876,2]
[314877350,1708609849854,-919.03,0.00032876,2]
[314877351,1708609849864,-500.0,0.00032876,14]
[314877352,1708609849872,-510.50032338,0.00032876,2]
[314877353,1708609849882,-2163.44,0.00032876,2]
[314877354,1708609849892,-1325.24,0.00032876,2]
[314877355,1708609849901,-500.0,0.00032876,2]
[314877356,1708609849911,-500.0,0.00032876,2]
[314877357,1708609849921,-1785.9,0.00032876,2]
[314877358,1708609849931,-500.0,0.00032876,2]
[314877359,1708609849940,-669.96,0.00032876,2]
[314877360,1708609849950,-1638.33,0.00032876,2]
[314877361,1708609849958,-544.98,0.00032876,2]
[314877362,1708609849967,-500.0,0.00032876,2]
[314877363,1708609849977,-500.0,0.00032876,2]
[314877364,1708609849988,-500.0,0.00032876,2]
[314877365,1708609849998,-2071.53,0.00032876,2]
[314877366,1708609850008,-3807.09,0.00032876,2]
[314877367,1708609850017,-1178.66,0.00032876,2]
[314877368,1708609850026,-500.0,0.00032876,2]
[314877369,1708609850035,-500.0,0.00032876,2]
[314877370,1708609850044,-500.0,0.00032876,2]
[314877371,1708609850054,-2877.7,0.00032876,2]
[314877372,1708609850063,-500.0,0.00032876,2]
[314877373,1708609850073,-500.0,0.00032876,2]
[314877374,1708609850082,-559.65,0.00032876,2]
[314877375,1708609850091,-1197.69,0.00032876,2]
[314877376,1708609850103,-1046.81,0.00032876,2]
[314877377,1708609850113,-500.0,0.00032876,2]
[314877378,1708609850122,-504.6021709,0.00032876,2]
[314877379,1708609850134,-7846.38,0.00032876,2]
[314877380,1708609850144,-10097.9,0.00032876,2]
[314877381,1708609850154,-2120.42,0.00032876,2]
[314877382,1708609850164,-1724.08,0.00032876,2]
[314877383,1708609850174,-500.0,0.00032876,2]
[314877384,1708609850183,-500.0,0.00032876,2]
[314877385,1708609850193,-500.0,0.00032876,2]
[314877386,1708609850202,-500.0,0.00032876,2]
[314877387,1708609850214,-500.0,0.00032876,2]
[314877388,1708609850225,-12088.18,0.00032876,2]
[314877389,1708609850234,-603.83,0.00032876,2]
[314877390,1708609850244,-500.0,0.00032876,2]
[314877391,1708609850254,-500.0,0.00032876,2]
[314877392,1708609850263,-701.44,0.00032876,2]
[314877393,1708609850273,-2687.32,0.00032876,2]
[314877394,1708609850283,-500.0,0.00032876,2]
[314877395,1708609850292,-1323.14,0.00032876,2]
[314877396,1708609850303,-500.0,0.00032876,2]
[314877397,1708609850315,-547.17,0.00032876,2]
[314877398,1708609850325,-541.76,0.00032876,2]
[314877399,1708609850335,-905.5,0.00032876,2]
[314877400,1708609850345,-801.92,0.00032876,2]
[314877401,1708609850355,-1040.24,0.00032876,2]
[314877402,1708609850365,-500.0,0.00032876,2]
[314877403,1708609850375,-500.0,0.00032876,2]
[314877404,1708609850387,-1484.6,0.00032876,2]
[314877405,1708609850397,-2225.63,0.00032876,2]
[314877406,1708609850407,-500.0,0.00032876,2]
[314877407,1708609850418,-719.87,0.00032876,2]
[314877408,1708609850429,-500.0,0.00032876,2]
[314877409,1708609850440,-500.0,0.00032876,2]
[314877410,1708609850450,-500.0,0.00032876,2]
[314877411,1708609850460,-500.0,0.00032876,2]
[314877412,1708609850470,-500.0,0.00032876,2]
[314877413,1708609850480,-500.0,0.00032876,2]
[314877414,1708609850490,-500.0,0.00032876,2]
[314877415,1708609850500,-786.32,0.00032876,2]
[314877416,1708609850510,-500.0,0.00032876,2]
[314877417,1708609850520,-11165.04,0.00032876,2]
[314877418,1708609850530,-500.0,0.00032876,2]
[314877419,1708609850542,-500.0,0.00032876,2]
[314877420,1708609850552,-712.35,0.00032876,2]
[314877421,1708609850561,-500.0,0.00032876,2]
[314877422,1708609850570,-500.0,0.00032876,2]
[314877423,1708609850580,-1596.85,0.00032876,2]
[314877424,1708609850589,-500.0,0.00032876,2]
[314877425,1708609850598,-500.0,0.00032876,2]
[314877426,1708609850608,-983.24,0.00032876,2]
[314877427,1708609850618,-500.0,0.00032876,2]
[314877428,1708609850627,-594.97,0.00032876,2]
[314877429,1708609850642,-500.0,0.00032876,2]
[314877430,1708609850653,-500.0,0.00032876,2]
[314877431,1708609850662,-504.73,0.00032876,2]
[314877432,1708609850672,-500.0,0.00032876,2]
[314877433,1708609850682,-858.95,0.00032876,2]
[314877434,1708609850692,-500.0,0.00032876,2]
[314877435,1708609850702,-1763.55,0.00032876,2]
[314877436,1708609850713,-500.0,0.00032876,2]
[314877437,1708609850723,-500.0,0.00032876,2]
[314877438,1708609850733,-500.0,0.00032876,2]
[314877439,1708609850743,-150.0,0.00032876,2]
[314877440,1708609850753,-1578.75,0.00032876,2]
[314877441,1708609850763,-1309.91,0.00032876,2]
[314877442,1708609850773,-702.13,0.00032876,2]
[314877443,1708609850783,-500.0,0.00032876,2]
[314877444,1708609850792,-500.0,0.00032876,2]
[314877445,1708609850802,-500.0,0.00032876,2]
[314877446,1708609850811,-1326.38,0.00032876,2]
[314877447,1708609850821,-916.66,0.00032876,2]
[314877448,1708609850830,-500.0,0.00032876,2]
[314877449,1708609850840,-544.21633157,0.00032876,2]
[314877450,1708609850850,-500.0,0.00032876,2]
[314877451,1708609850860,-3146.13,0.00032876,2]
[314877452,1708609850869,-1132.55,0.00032876,2]
[314877453,1708609850879,-682.19,0.00032876,2]
[314877454,1708609850891,-500.0,0.00032876,2]
[314877455,1708609850901,-1400.86,0.00032876,2]
[314877456,1708609850910,-675.59,0.00032876,2]
[314877457,1708609850920,-500.0,0.00032876,2]
[314877458,1708609850929,-500.0,0.00032876,2]
[314877459,1708609850939,-500.0,0.00032876,2]
[314877460,1708609850949,-500.0,0.00032876,2]
[314877461,1708609850959,-500.0,0.00032876,2]
[314877462,1708609850969,-3392.6,0.00032876,2]
[314877463,1708609850978,-669.11641176,0.00032876,2]
[314877464,1708609850987,-472.67374031,0.00032876,2]
[314877465,1708609850996,-500.0,0.00032876,2]
[314877466,1708609851006,-500.0,0.00032876,2]
[314877467,1708609851015,-1044.27,0.00032876,2]
[314877468,1708609851026,-600.54,0.00032876,2]
[314877469,1708609851035,-500.0,0.00032876,2]
[314877470,1708609851045,-6665.59,0.00032876,2]
[314877471,1708609851055,-625.38,0.00032876,2]
[314877472,1708609851065,-5567.52,0.00032876,2]
[314877473,1708609851074,-3601.15,0.00032876,2]
[314877474,1708609851084,-505.20868535,0.00032876,2]
[314877475,1708609851094,-500.0,0.00032876,2]
[314877476,1708609851104,-500.0,0.00032876,2]
[314877477,1708609851113,-513.52530712,0.00032876,2]
[314877478,1708609851123,-500.0,0.00032876,2]
[314877479,1708609851135,-575.21391225,0.00032876,2]
[314877480,1708609851146,-512.8,0.00032876,2]
[314877481,1708609851156,-808.19,0.00032876,2]
[314877482,1708609851164,-500.0,0.00032876,2]
[314877483,1708609851174,-503.00480584,0.00032876,2]
[314877484,1708609851183,-500.0,0.00032876,2]
[314877485,1708609851192,-500.0,0.00032876,2]
[314877486,1708609851201,-500.0,0.00032876,2]
[314877487,1708609851211,-500.0,0.00032876,2]
[314877488,1708609851220,-500.0,0.00032876,2]
[314877489,1708609851229,-531.69,0.00032876,2]
[314877490,1708609851239,-937.72,0.00032876,2]
[314877491,1708609851248,-848.4,0.00032876,2]
[314877492,1708609851258,-1174.87,0.00032876,2]
[314877493,1708609851268,-1350.79,0.00032876,2]
[314877494,1708609851277,-3407.12,0.00032876,2]
[314877495,1708609851287,-3468.28,0.00032876,2]
[314877496,1708609851297,-3036.49,0.00032876,2]
[314877497,1708609851306,-500.0,0.00032876,2]
[314877498,1708609851316,-768.11,0.00032876,2]
[314877499,1708609851324,-1078.7,0.00032876,2]
[314877500,1708609851333,-745.04,0.00032876,2]